Cogmind - Beta 9.4 @@@ ROGUE MODE // 2020.03.30 @ 14:52:57 Player: Torako Result: Destroyed by as-75607 with Assembled Rifle Performance ------------- Evolutions (0) 0 Regions Visited (4) 800 Robots Destroyed (14) 70 Value Destroyed (179) 179 Prototype IDs (22) 440 Alien Tech Used (0) 0 Bonus (300) 300 TOTAL SCORE: 1789 Bonus ------- Aligned with FarCom 300 Cogmind --------- Core Integrity 0/250 Matter 298/300 Energy 100/100 System Corruption 4% Temperature Cool (20) Movement Core (100) Ox1 Location -9/Mines Parts ------- > --- POWER (1) -------- (None) > --- PROPULSION (2) --- (None) > --- UTILITY (2) ------ Lightpack 2.0 > --- WEAPON (2) ------- (None) > --- INVENTORY (24) --- Improved Aluminum Leg Improved Aluminum Leg Improved Aluminum Leg Cooling System High-capacity Storage Unit High-capacity Storage Unit High-capacity Storage Unit High-capacity Matter Pod (200) Peak State ------------ > --- POWER ------------ Light Ion Engine > --- PROPULSION ------- Aluminum Leg Aluminum Leg > --- UTILITY ---------- Lightpack 2.0 > --- WEAPON ----------- Autogun Autogun > --- INVENTORY -------- Ion Engine Improved Aluminum Leg Improved Aluminum Leg Improved Aluminum Leg Improved Aluminum Leg Cooling System [Rating: 28] Favorites ----------- Power Light Ion Engine Engine Light Ion Engine Power Core Light Nuclear Core Propulsion Aluminum Leg Leg Aluminum Leg Utility Lightpack 2.0 Device Cooling System Storage Lightpack 2.0 Weapon Autogun Energy Gun Small Laser Ballistic Gun Autogun Launcher Grenade Launcher Build | -11 -10 -10 -10 -9 ------- Run | Scr Mat Min Exi Min Slots Evolved . | . . . . . Power . | . . . . . Propulsion . | . . . . . Utility . | . . . . . Weapon . | . . . . . Parts Attached 13 | . 3 1 1 8 Power 2 | . . . . 2 Engine 1 | . . . . 1 Core 1 | . . . . 1 Reactor . | . . . . . Propulsion 3 | . . . . 3 Treads . | . . . . . Leg 3 | . . . . 3 Wheel . | . . . . . Hover . | . . . . . Flight . | . . . . . Utility 2 | . 1 . 1 . Device 1 | . 1 . . . Storage 1 | . . . 1 . Processor . | . . . . . Hackware . | . . . . . Protection . | . . . . . Artifact . | . . . . . Weapon 6 | . 2 1 . 3 Energy Gun 2 | . . . . 2 Energy Cannon . | . . . . . Ballistic Gun 3 | . 2 1 . . Ballistic Cannon . | . . . . . Launcher 1 | . . . . 1 Special Weapon . | . . . . . Impact Weapon . | . . . . . Slashing Weapon . | . . . . . Piercing Weapon . | . . . . . Special Melee Weapon . | . . . . . Unidentified Prototypes . | . . . . . Parts Lost 13 | . . . . 13 Power 3 | . . . . 3 Propulsion 5 | . . . . 5 Utility . | . . . . . Weapon 5 | . . . . 5 Highest Loss Streak 9 | . . . . 9 Average Slot Usage (%) 86 | . 99 100 90 74 Engine 13 | . 14 14 14 13 Leg 27 | . 28 28 28 27 Device 5 | . 13 14 4 . Storage 14 | . 14 14 14 14 Ballistic Gun 22 | . 28 28 28 13 Launcher 1 | . . . . 3 Naked Turns . | . . . . . Heaviest Build 16 | 10 15 15 15 16 Greatest Support 23 | 20 20 20 20 23 Greatest Overweight (x) 1 | . . . . 1 Average Overweight (x) . | . . . . . Largest Inventory Capacity 24 | . 6 6 24 24 Average Capacity 17 | . 6 6 17 24 Most Carried 15 | . 6 6 10 15 Average Carried 8 | . 5 5 6 11 Final Capacity 24 | 6 6 6 24 24 Final Carried 10 | 6 6 5 10 8 Class Distribution -------------------- 60% | Hauler-Mutant 39% | Mutant Dominant Class ---------------- Mutant | -10/Materials Mutant | -10/Mines Hauler-Mutant | -10/Exiles Hauler-Mutant | -9/Mines Resources | -11 -10 -10 -10 -9 ----------- Run | Scr Mat Min Exi Min Matter Collected 527 | 200 . . 43 284 Remotely . | . . . . . Salvage Created 231 | . . . . 231 Parts 11 | . . . . 11 Haulers Intercepted . | . . . . . Recyclers Shooed . | . . . . . Parts Field Recycled . | . . . . . Retrieved Matter . | . . . . . Parts Self-Destructed . | . . . . . Prevented . | . . . . . Kills | -11 -10 -10 -10 -9 ------- Run | Scr Mat Min Exi Min Combat Hostiles Destroyed 14 | . . . . 14 Guns 7 | . . . . 7 AOE 7 | . . . . 7 Classes Destroyed 3 | . . . . 3 Swarmer 3 | . . . . 3 Grunt 4 | . . . . 4 Assembled 7 | . . . . 7 Best Kill Streak 5 | . . . . 5 Combat Bots Only 5 | . . . . 5 Max Kills in Single Turn 3 | . . . . 3 Gunslinging . | . . . . . Exploded 3 | . . . . 3 Melee . | . . . . . Uniques/NPCs Destroyed . | . . . . . Combat | -11 -10 -10 -10 -9 -------- Run | Scr Mat Min Exi Min Damage Taken 1449 | . 26 . . 1423 Core 253 | . 14 . . 239 Absorbed by Shields . | . . . . . Core Remaining (%) 100 | 100 . . . . Volleys Fired 36 | . . . . 36 Largest 2 | . . . . 2 Hottest 46 | . . . . 46 Shots Fired 60 | . . . . 60 Gun 55 | . . . . 55 Cannon . | . . . . . Launcher 5 | . . . . 5 Special . | . . . . . Kinetic 54 | . . . . 54 Thermal 1 | . . . . 1 Explosive 5 | . . . . 5 Electromagnetic . | . . . . . Robot Hit Streak 8 | . . . . 8 Robot Miss Streak 4 | . . . . 4 Penetration Max . | . . . . . Secondary Targets 2 | . . . . 2 Max Gunslinging Chain 1 | . . . . 1 Shots Hit Robots 35 | . . . . 35 Core Hits 28 | . . . . 28 Critical Hits 1 | . . . . 1 Critical Kills . | . . . . . Critical Parts Destroyed 1 | . . . . 1 Melee Attacks . | . . . . . Impact . | . . . . . Slashing . | . . . . . Piercing . | . . . . . Sneak Attacks . | . . . . . Combat Hostiles . | . . . . . Follow-up Attacks . | . . . . . Damage Inflicted 905 | . . 1 . 904 Guns 527 | . . . . 527 Cannons . | . . . . . Explosions 377 | . . . . 377 Melee . | . . . . . Ramming 1 | . . 1 . . Kinetic 527 | . . . . 527 Thermal . | . . . . . Explosive 377 | . . . . 377 Electromagnetic . | . . . . . Impact . | . . . . . Slashing . | . . . . . Piercing . | . . . . . Highest Corruption 4 | . 1 1 1 4 Average Corruption 1 | . 1 1 1 1 Corruption Purged . | . . . . . Effects 4 | . . . 1 3 Message Errors 4 | . . . 1 3 Overload Shots . | . . . . . Overflow Damage 42 | . . . . 42 Projectiles . | . . . . . Explosions 42 | . . . . 42 Melee . | . . . . . Knockbacks . | . . . . . Impact . | . . . . . Kinetic . | . . . . . Secondary . | . . . . . Self-Inflicted Damage 93 | . . . . 93 Shots 3 | . . . . 3 Rammed 1 | . . 1 . . Targets Rammed 2 | . . 2 . . Kicked 1 | . . 1 . . Crushed . | . . . . . Highest Temperature 114 | . . . . 114 Average Temperature 48 | . . . . 48 Received Heat Transfer 269 | . . . . 269 Siege Activations . | . . . . . Robots Corrupted . | . . . . . Combat Hostiles . | . . . . . Parts Fried . | . . . . . Impact Corruptions . | . . . . . Robots Melted . | . . . . . Combat Hostiles . | . . . . . Parts Melted . | . . . . . Heat Transferred . | . . . . . Parts Sabotaged . | . . . . . Parts Stolen . | . . . . . Parts Stripped . | . . . . . Power Chain Reactions . | . . . . . Missiles Intercepted . | . . . . . Alert | -11 -10 -10 -10 -9 ------- Run | Scr Mat Min Exi Min Peak Influence 155 | . 15 5 . 155 Average Influence 54 | . 7 5 . 87 Maximum Alert Level . | . . . . . Low Security (%) 100 | . 100 100 . 100 Level 1 . | . . . . . Level 2 . | . . . . . Level 3 . | . . . . . Level 4 . | . . . . . Level 5 . | . . . . . High Security . | . . . . . Max Security . | . . . . . Squads Dispatched 2 | . 1 . . 1 Investigation . | . . . . . Extermination . | . . . . . Reinforcement 1 | . 1 . . . Assault 1 | . . . . 1 Garrison . | . . . . . Intercept . | . . . . . Construction Impeded . | . . . . . Haulers Reinforced . | . . . . . Stealth | -11 -10 -10 -10 -9 --------- Run | Scr Mat Min Exi Min Distress Signals 1 | . 1 . . . Communications Jammed . | . . . . . Distress Signals . | . . . . . Times Spotted 39 | . 3 . . 36 Peak Tracking Total 20 | . 3 . . 20 Tactical Retreats 5 | . 1 . . 4 Traps | -11 -10 -10 -10 -9 ------- Run | Scr Mat Min Exi Min Traps Triggered 1 | . 1 . . . Indirectly . | . . . . . Trap Hack Attempts . | . . . . . Triggered . | . . . . . Disarmed . | . . . . . Reprogrammed . | . . . . . Reused . | . . . . . Traps Extracted . | . . . . . Installed . | . . . . . Triggered . | . . . . . Machines | -11 -10 -10 -10 -9 ---------- Run | Scr Mat Min Exi Min Machines Disabled . | . . . . . Max in Single Turn . | . . . . . Machines Sabotaged . | . . . . . Garrisons Compromised . | . . . . . Overloaded Fab Kills . | . . . . . Fab Network Shutdowns . | . . . . . Hacking | -11 -10 -10 -10 -9 --------- Run | Scr Mat Min Exi Min Machines Accessed 3 | . . . 3 . Terminals . | . . . . . Fabricators . | . . . . . Repair Stations . | . . . . . Recycling Units . | . . . . . Scanalyzers . | . . . . . Garrison Access . | . . . . . Total Hacks 32 | . . . 32 . Successful 32 | . . . 32 . Failed . | . . . . . Catastrophic . | . . . . . Database Lockouts . | . . . . . Manual 1 | . . . 1 . Terminals . | . . . . . Fabricators . | . . . . . Repair Stations . | . . . . . Recycling Units . | . . . . . Scanalyzers . | . . . . . Garrison Access . | . . . . . Terminal Hacks 32 | . . . 32 . Record 31 | . . . 31 . EX-Prototype ID Bank 1 | . . . 1 . Fabricator Hacks . | . . . . . Repair Station Hacks . | . . . . . Recycling Unit Hacks . | . . . . . Scanalyzer . | . . . . . Garrison Access Hacks . | . . . . . Unauthorized Hacks . | . . . . . Terminals . | . . . . . Fabricators . | . . . . . Repair Stations . | . . . . . Recycling Units . | . . . . . Scanalyzers . | . . . . . Garrison Access . | . . . . . Data Cores Recovered . | . . . . . Used . | . . . . . Hacking Detections . | . . . . . Full Trace Events . | . . . . . Feedback Events . | . . . . . Feedback Blocked . | . . . . . Robot Schematics Acquired . | . . . . . Robots Built . | . . . . . Matter . | . . . . . Time . | . . . . . Total Robot Build Rating . | . . . . . Part Schematics Acquired . | . . . . . Parts Built . | . . . . . Matter . | . . . . . Time . | . . . . . Total Part Build Rating . | . . . . . Parts Repaired . | . . . . . Time . | . . . . . Parts Recycled . | . . . . . Recycled Matter . | . . . . . Retrieved Matter . | . . . . . Retrieved Components . | . . . . . Parts Scanalyzed . | . . . . . Part Schematics Acquired . | . . . . . Parts Damaged . | . . . . . Bothacking | -11 -10 -10 -10 -9 ------------ Run | Scr Mat Min Exi Min Used RIF Installer . | . . . . . Robots Hacked . | . . . . . Non-combat . | . . . . . Combat . | . . . . . Robot Hacks Applied . | . . . . . Relay Couplers Released . | . . . . . Robots Rewired . | . . . . . Allies Hacked . | . . . . . Hacks Repelled . | . . . . . Allies | -11 -10 -10 -10 -9 -------- Run | Scr Mat Min Exi Min Total Allies 1 | . . . . 1 Largest Group 1 | . . . . 1 Highest-Rated Group 31 | . . . . 31 Highest-Rated Ally 31 | . . . . 31 Total Orders . | . . . . . Ally Attacks 8 | . . . . 8 Total Damage 20 | . . . . 20 Kills . | . . . . . Allies Corrupted . | . . . . . Allies Melted . | . . . . . Intel | -11 -10 -10 -10 -9 ------- Run | Scr Mat Min Exi Min Robot Analysis Total . | . . . . . Derelict Logs Recovered . | . . . . . Drone Launches . | . . . . . Drone Recoveries . | . . . . . Exploration | -11 -10 -10 -10 -9 ------------- Run | Scr Mat Min Exi Min Turns Passed 1215 | . 211 103 433 468 Spaces Moved 895 | 1 166 83 352 293 Core 4 | . . . . 4 Treads . | . . . . . Legs 891 | 1 166 83 352 289 Wheels . | . . . . . Hover . | . . . . . Flight . | . . . . . Fastest Speed 100 | 120 120 120 120 100 Average Speed 120 | 120 120 120 120 120 Slowest Speed 150 | 120 120 120 120 150 Overloaded Moves . | . . . . . Propulsion Burnouts . | . . . . . Robots Hopped . | . . . . . Cave-ins Triggered . | . . . . . Exploration Rate (%) 39 | 2 37 29 72 55 Regions Visited 4 Branch Regions 3 Pre-discovered Areas 1 | . . . 1 . Known Exits Taken . | . . . . . Unknown Exits Taken 4 | 1 1 1 1 . Scrap Searched . | . . . . . Spaces Dug . | . . . . . Terrain Destroyed 39 | . . . . 39 Melee . | . . . . . Projectile . | . . . . . AOE 39 | . . . . 39 Actions | -11 -10 -10 -10 -9 --------- Run | Scr Mat Min Exi Min Total 989 | . 180 86 364 359 Wait 16 | . . . . 16 Move 891 | . 165 82 351 293 Hop . | . . . . . Pick Up 20 | . 5 . 9 6 Fast Attach 3 | . 3 . . . Attach 10 | . . 1 1 8 Detach . | . . . . . Swap . | . . . . . Drop 11 | . 7 1 3 . Fire 36 | . . . . 36 Melee . | . . . . . Ram . | . . . . . Kick 2 | . . 2 . . Crush . | . . . . . Escape Stasis . | . . . . . Rewire . | . . . . . Trap . | . . . . . Miscellaneous . | . . . . . Route ------- -11/Scrapyard -10/Materials -10/Mines (discovered 2 exits: [*Mat] / *Exi) -10/Exiles -9/Mines History --------- Turn | Location | Event 1 | -11/Scrapyard | Discovered new exit (range 0) 1 | -11/Scrapyard | Entered Materials 194 | -10/Materials | Discovered new exit (range 16) 212 | -10/Materials | Entered Mines 249 | -10/Mines | Discovered new exit (range 9) 303 | -10/Mines | Build established: Mutant 310 | -10/Mines | Deemed a non-threat by the Exiles lab entrance 310 | -10/Mines | Discovered new exit (range 5) 315 | -10/Mines | Entered Exiles 344 | -10/Exiles | Met 8R-AWN 365 | -10/Exiles | Met EX-HEX 399 | -10/Exiles | Met EX-BIN 416 | -10/Exiles | Aligned with FarCom system 417 | -10/Exiles | Given EX-Vault access code 447 | -10/Exiles | Opened EX-Vault 458 | -10/Exiles | Found Lightpack 2.0 498 | -10/Exiles | Warned to stay clear of 0b10 Research branches 535 | -10/Exiles | Met EX-DEC 540 | -10/Exiles | Learned location of Zion (-6) 731 | -10/Exiles | Discovered new exit (range 14) 748 | -10/Exiles | Left Exiles lab with Lightpack 2.0 748 | -10/Exiles | Entered Mines 749 | -9/Mines | Met a Derelict testing a Signal Generator 767 | -9/Mines | Build established: Hauler-Mutant 962 | -9/Mines | Assisted by bots powering up and referring to "LRC-V3" 1019 | -9/Mines | Assembled infested the area 1053 | -9/Mines | Core integrity fell below 50% 1207 | -9/Mines | Core integrity fell below 20% 1216 | -9/Mines | Destroyed by as-75607 with Assembled Rifle Last Messages --------------- Knocked back. YI-UF0: "Whaaaaaaaa!" Imp. Aluminum Leg destroyed. YI-UF0: "KAPOW!" M-13 Machinist destroyed. Ion Engine destroyed. System corrupted by crushing effect (+3). Aluminum Leg destroyed. as-07311 destroyed. Sml. Laser destroyed. R-06 Scavenger destroyed. 1X= %AOCT>X E|BAP JGE>M&2/&HFCD> /YIKRL Lgt. Nuclear Core destroyed. Aluminum Leg destroyed. Sml. Laser destroyed. The unstable cave ceiling collapses. Aluminum Leg destroyed. Acquired 29 matter. The unstable cave ceiling collapses. Acquired 41 matter. Map ----- +----------------------------------------------------+ | | | | | | | | | | | | | | | | | | | | | ?????????????????????????????????????????? | | ?????????????####????????????????????????? | | ????????????## ###########??????????????? | | ??????####### ##?????????????? | | #?????# = ##????????????? | | ####### %! ### ##???????????? | | ##### ##?## #???????????? | | ####### #???# ##???# #???????????? | | ##????# #???# #????## ##???????????? | | #????# ##### #?????# ##???????????? | | #????# = #?????# ###?????????? | | ##????###### #?????## ##????????? | | ##??????????#= #?????## #????????? | | #???????????## #????## #????????? | | ?????????????## ##????# #????????? | | ??????????????####?????# @ ##????????? | | ???????????????????????# #?????????? | | ??????????????????????## ! ##?????????? | | ?????????????????????## #??????????? | | ??????????????????#### a #??????????? | | ?????????????????## ##??????????? | | ?????????????????# ####???????????? | | ?????????????????## #??????????????? | | ????????????????## ###??????????????? | | ????????????????# ###??????????????? | | ????????????????# #??????????????? | | ?????????????#### #??????????????? | | ????????????## ######??????????? | | ????????????# g #??????????? | | ????????????# ### #######????? | | ????????????# ##?# #??? | | ???????????# ##### ####### #??? | | ???????????# # ##### #?????# #??? | | ???????????## #?## #??### ##?? | | ???????????# ###?# #### #?? | | ???????????# % ##??## ## #?? | | ???????## ###??## #?? | | ??###### #???## #?? | | ?## ## ##???# ##?? | | ?# # ######????# ### ##??? | +----------------------------------------------------+ Best States ------------- Heat Dissipation 47 Energy Generation 10 Energy Capacity 250 Matter Stores 300 Matter Capacity 300 Sight Range 16 Terrain Scan Density 10 Evasion (%) 40 Item Schematics ----------------- None Robot Schematics ------------------ None Fabricated ------------ Nothing Alien Tech Used ----------------- None Achievements -------------- None Challenges ------------ None Game ------ Seed ChipFusionExpander Manual? 0 Play Time 00:13:14 Cumulative 153.8 hours Start 2020.03.30 @ 14:40:52 End 2020.03.30 @ 14:52:57 Sessions 1 Manual Loads 0 Difficulty Rogue Special Mode None Game No. 181 Rogue 181 Adventurer 0 Explorer 0 Win Type - Total 3 Types 3/0/0/0/0/0/0 Lore% 66 Gallery% 78 Achievement% 57 Wizard Run 0 Options --------- ASCII 0 Keyboard 1 Movement Numpad Keybinds 0 Fullscreen 1 Font 20/SmallcapsGlow Map View 66x50 Tactical HUD 1 Map Filters NONE Filters NONE Steam 1 RUN: a8415f3c-d598-46b9-99d2-85d7ac5fdb1e